fUST/lending_fUST_20240301
["ID","MTS","AMOUNT","RATE_DAILY","PERIOD"]
[315969282,1709307043921,-500.0,0.00020547,2]
[315969284,1709307043931,-500.0,0.00020547,2]
[315969286,1709307043940,-500.0,0.00020547,2]
[315969287,1709307043949,-500.0,0.00020547,2]
[315969289,1709307043958,-500.0,0.00020547,2]
[315969291,1709307043967,-515.34337058,0.00020547,2]
[315969293,1709307043977,-234.5338,0.00020895,2]
[315969294,1709307043986,-3066.93535569,0.000209,2]
[315969296,1709307043996,-500.0,0.00020973,2]
[315969298,1709307044005,-500.0,0.00020976,2]
[315969300,1709307044014,-660.4,0.00020976,2]
[315969302,1709307044023,-500.0,0.00020976,2]
[315969304,1709307044032,-500.0,0.00020976,2]
[315969305,1709307044041,-500.0,0.00020976,2]
[315969307,1709307044050,-2081.8,0.00020976,2]
[315969309,1709307044059,-888.6,0.00020976,2]
[315969310,1709307044067,-8228.06919927,0.00020977,2]
[315969312,1709307044077,-588.28,0.00020997,2]
[315969314,1709307044086,-500.0,0.00020997,2]
[315969316,1709307044095,-500.0,0.00020997,2]
[315969317,1709307044104,-500.0,0.00020997,2]
[315969319,1709307044114,-660.4,0.00020997,2]
[315969321,1709307044123,-1903.24,0.00020997,2]
[315969323,1709307044132,-500.0,0.00020997,2]
[315969325,1709307044141,-500.0,0.00020997,2]
[315969327,1709307044150,-500.0,0.00020997,2]
[315969328,1709307044159,-500.0,0.00020997,2]
[315969330,1709307044169,-500.0,0.00020997,2]
[315969332,1709307044179,-500.0,0.00020997,2]
[315969334,1709307044188,-500.0,0.00020997,2]
[315969335,1709307044197,-500.0,0.00020997,2]
[315969337,1709307044206,-500.0,0.00020997,2]
[315969339,1709307044215,-500.0,0.00020997,2]
[315969341,1709307044224,-500.0,0.00020997,2]
[315969342,1709307044233,-500.0,0.00020997,2]
[315969344,1709307044242,-500.0,0.00020997,2]
[315969346,1709307044254,-500.0,0.00020997,2]
[315969348,1709307044262,-500.0,0.00020997,2]
[315969350,1709307044271,-2081.8,0.00020997,2]
[315969352,1709307044281,-622.03,0.00020997,2]
[315969354,1709307044290,-888.6,0.00020997,2]
[315969355,1709307044299,-500.0,0.00020997,2]
[315969357,1709307044308,-240.49886462,0.00020998,2]
[315969359,1709307044318,-13721.21321296,0.00020998,2]
[315969361,1709307044326,-219.78463386,0.00020998,2]
[315969363,1709307044335,-155.06512735,0.00020998,2]
[315969364,1709307044344,-311.67599768,0.00020998,2]
[315969366,1709307044354,-1592.05606337,0.00020998,2]
[315969368,1709307044362,-219.7431416,0.00020998,2]
[315969370,1709307044371,-214.46734632,0.00020998,2]
[315969372,1709307044381,-155.12099438,0.00020998,2]
[315969374,1709307044390,-198.32516916,0.00020998,2]
[315969375,1709307044399,-155.26844675,0.00020998,2]
[315969377,1709307044408,-155.26689366,0.00020998,2]
[315969379,1709307044417,-280.21092748,0.00020998,2]
[315969381,1709307044426,-243.00000001,0.00020998,2]
[315969383,1709307044436,-190.83751893,0.00020998,2]
[315969385,1709307044446,-178.74438202,0.00020998,2]
[315969387,1709307044455,-155.16236325,0.00020998,2]
[315969389,1709307044464,-812.22817838,0.00020998,2]
[315969391,1709307044473,-274.45998702,0.00020998,2]
[315969392,1709307044484,-508.95946117,0.00020998,2]
[315969394,1709307044493,-744.34995698,0.00020998,2]
[315969396,1709307044502,-155.15515516,0.00020998,2]
[315969398,1709307044511,-1603.92253255,0.00020998,2]
[315969400,1709307044520,-1212.64264846,0.00020998,2]
[315969402,1709307044529,-500.0,0.00020998,2]
[315969403,1709307044538,-660.4,0.00020998,2]
[315969405,1709307044547,-1903.24,0.00020998,2]
[315969407,1709307044556,-1903.24,0.00020998,2]
[315969409,1709307044565,-1903.24,0.00020998,2]
[315969411,1709307044574,-1903.24,0.00020998,2]
[315969413,1709307044584,-1903.24,0.00020998,2]
[315969415,1709307044592,-1903.24,0.00020998,2]
[315969416,1709307044601,-1903.30087218,0.00020998,2]
[315969418,1709307044611,-500.0,0.00020998,2]
[315969420,1709307044620,-500.0,0.00020998,2]
[315969422,1709307044629,-500.0,0.00020998,2]
[315969424,1709307044639,-500.0,0.00020998,2]
[315969426,1709307044649,-500.0,0.00020998,2]
[315969427,1709307044658,-500.0,0.00020998,2]
[315969429,1709307044667,-500.0,0.00020998,2]
[315969431,1709307044676,-500.0,0.00020998,2]
[315969433,1709307044690,-500.0,0.00020998,2]
[315969435,1709307044699,-308.79231473,0.00020998,2]
[315969437,1709307044708,-2081.8,0.00020998,2]
[315969438,1709307044717,-888.6,0.00020998,2]
[315969440,1709307044727,-647.13,0.00020998,2]
[315969442,1709307044738,-500.0,0.00020999,2]
[315969444,1709307044747,-417.64,0.00020999,2]
[315969446,1709307044756,-500.0,0.00020999,2]
[315969448,1709307044767,-319.91,0.00020999,2]
[315969450,1709307044775,-660.4,0.00020999,2]
[315969451,1709307044784,-660.4,0.00020999,2]
[315969453,1709307044794,-660.4,0.00020999,2]
[315969455,1709307044803,-660.4,0.00020999,2]
[315969457,1709307044812,-660.4,0.00020999,2]
[315969459,1709307044821,-660.4,0.00020999,2]
[315969461,1709307044830,-660.4,0.00020999,2]
[315969463,1709307044839,-660.4,0.00020999,2]
[315969464,1709307044848,-660.4,0.00020999,2]
[315969466,1709307044857,-660.4,0.00020999,2]
[315969468,1709307044866,-660.4,0.00020999,2]
[315969470,1709307044875,-660.4,0.00020999,2]
[315969472,1709307044885,-660.4,0.00020999,2]
[315969474,1709307044894,-660.4,0.00020999,2]
[315969475,1709307044903,-660.49,0.00020999,2]
[315969477,1709307044912,-500.0,0.00020999,2]
[315969479,1709307044921,-500.0,0.00020999,2]
[315969481,1709307044930,-588.72006566,0.00020999,2]
[315969483,1709307044940,-500.0,0.00020999,2]
[315969485,1709307044949,-500.0,0.00020999,2]
[315969486,1709307044958,-500.0,0.00020999,2]
[315969488,1709307044967,-500.0,0.00020999,2]
[315969490,1709307044976,-500.0,0.00020999,2]
[315969492,1709307044987,-500.0,0.00020999,2]
[315969494,1709307044996,-500.0,0.00020999,2]
[315969496,1709307045005,-500.0,0.00020999,2]
[315969498,1709307045014,-500.0,0.00020999,2]
[315969499,1709307045023,-500.0,0.00020999,2]
[315969501,1709307045032,-500.0,0.00020999,2]
[315969503,1709307045041,-500.0,0.00020999,2]
[315969505,1709307045050,-500.0,0.00020999,2]
[315969507,1709307045060,-447.08,0.00020999,2]
[315969509,1709307045069,-500.0,0.00020999,2]
[315969511,1709307045077,-500.0,0.00020999,2]
[315969513,1709307045086,-500.0,0.00020999,2]
[315969514,1709307045095,-565.10198606,0.00020999,2]
[315969516,1709307045105,-500.0,0.00020999,2]
[315969518,1709307045114,-500.0,0.00020999,2]
[315969520,1709307045123,-324.67,0.00020999,2]
[315969522,1709307045132,-500.0,0.00020999,2]
[315969524,1709307045142,-500.0,0.00020999,2]
[315969526,1709307045152,-500.0,0.00020999,2]
[315969528,1709307045161,-500.0,0.00020999,2]
[315969529,1709307045171,-500.0,0.00020999,2]
[315969531,1709307045181,-581.99736565,0.00020999,2]
[315969533,1709307045190,-500.0,0.00020999,2]
[315969535,1709307045202,-500.0,0.00020999,2]
[315969537,1709307045211,-500.0,0.00020999,2]
[315969539,1709307045220,-500.0,0.00020999,2]
[315969541,1709307045229,-500.0,0.00020999,2]
[315969542,1709307045241,-500.0,0.00020999,2]
[315969544,1709307045249,-500.0,0.00020999,2]
[315969546,1709307045258,-500.0,0.00020999,2]
[315969548,1709307045267,-500.0,0.00020999,2]
[315969550,1709307045275,-500.0,0.00020999,2]
[315969552,1709307045284,-500.0,0.00020999,2]
[315969553,1709307045294,-500.0,0.00020999,2]
[315969555,1709307045303,-500.0,0.00020999,2]
[315969557,1709307045312,-500.0,0.00020999,2]
[315969560,1709307045321,-500.0,0.00020999,2]
[315969562,1709307045330,-500.0,0.00020999,2]
[315969565,1709307045339,-232.74,0.00020999,2]
[315969567,1709307045347,-600.25537801,0.00020999,2]
[315969570,1709307045357,-500.0,0.00020999,2]
[315969571,1709307045365,-500.0,0.00020999,2]
[315969574,1709307045374,-500.0,0.00020999,2]
[315969576,1709307045383,-500.0,0.00020999,2]
[315969579,1709307045392,-500.0,0.00020999,2]
[315969581,1709307045401,-500.0,0.00020999,2]
[315969583,1709307045409,-572.14932669,0.00020999,2]
[315969584,1709307045418,-500.0,0.00020999,2]
[315969586,1709307045428,-500.0,0.00020999,2]
[315969588,1709307045437,-500.0,0.00020999,2]
[315969590,1709307045446,-500.0,0.00020999,2]
[315969592,1709307045455,-500.0,0.00020999,2]
[315969594,1709307045463,-500.0,0.00020999,2]
[315969596,1709307045472,-500.0,0.00020999,2]
[315969598,1709307045482,-500.0,0.00020999,2]
[315969599,1709307045491,-281.18637331,0.00020999,2]
[315969601,1709307045500,-500.0,0.00020999,2]
[315969603,1709307045510,-500.0,0.00020999,2]
[315969605,1709307045518,-440.83293923,0.00020999,2]
[315969607,1709307045527,-500.0,0.00020999,2]
[315969609,1709307045536,-500.0,0.00020999,2]
[315969611,1709307045545,-500.0,0.00020999,2]
[315969613,1709307045554,-500.0,0.00020999,2]
[315969614,1709307045563,-500.0,0.00020999,2]
[315969616,1709307045572,-364.58,0.00020999,2]
[315969618,1709307045581,-2081.8,0.00020999,2]
[315969620,1709307045590,-2081.8,0.00020999,2]
[315969622,1709307045599,-2081.8,0.00020999,2]
[315969624,1709307045608,-2081.8,0.00020999,2]
[315969625,1709307045617,-2081.8,0.00020999,2]
[315969627,1709307045626,-2081.8,0.00020999,2]
[315969629,1709307045636,-2081.8,0.00020999,2]
[315969631,1709307045645,-2081.8,0.00020999,2]
[315969633,1709307045654,-2081.8,0.00020999,2]
[315969635,1709307045663,-2081.8,0.00020999,2]
[315969637,1709307045672,-2081.8,0.00020999,2]
[315969639,1709307045682,-2081.8,0.00020999,2]
[315969640,1709307045695,-2081.8,0.00020999,2]
[315969649,1709307045776,-2081.8,0.00020999,2]
[315969651,1709307045786,-2082.02089947,0.00020999,2]
[315969653,1709307045796,-888.6,0.00020999,2]
[315969655,1709307045805,-888.6,0.00020999,2]
[315969657,1709307045815,-888.6,0.00020999,2]
[315969658,1709307045824,-888.6,0.00020999,2]
[315969660,1709307045834,-888.6,0.00020999,2]
[315969662,1709307045843,-888.6,0.00020999,2]
[315969664,1709307045852,-888.6,0.00020999,2]
[315969666,1709307045861,-888.6,0.00020999,2]
[315969668,1709307045871,-888.6,0.00020999,2]
[315969670,1709307045880,-888.6,0.00020999,2]
[315969672,1709307045890,-888.6,0.00020999,2]
[315969674,1709307045900,-888.6,0.00020999,2]
[315969675,1709307045910,-888.6,0.00020999,2]
[315969677,1709307045919,-888.6,0.00020999,2]
[315969679,1709307045928,-888.78666858,0.00020999,2]
[315969681,1709307045937,-209.06506407,0.00020999,2]
[315969683,1709307045947,-2474205.28902215,0.00021,2]
[315969685,1709307046335,-6165.20519153,0.00021,2]
[315969686,1709307046350,-7932.31021923,0.00021,2]
[315969687,1709307046387,-155.08064193,0.00016945,2]
[315969688,1709307046396,-308.79231473,0.00016945,2]
[315969689,1709307046406,-1897.25,0.00020537,3]
[315969690,1709307046415,-38328.36062948,0.00021,2]
[315969691,1709307046450,-781.18637331,0.00020299,2]
[315969692,1709307046549,-0.86040614,0.00020299,2]
[315970503,1709307230120,2614.48231216,0.00018898,5]
[315970504,1709307436414,1362.14528464,0.00018462,5]
[315970505,1709307558149,-2433.05863856,0.00017455,2]
[315970506,1709307558173,-3050.5311316,0.00017456,2]
[315970507,1709307558194,-8010.05157774,0.00018451,2]
[315970508,1709307558214,-557.5480976,0.00018451,2]
[315970509,1709307558234,-155.723056,0.00018451,2]
[315970510,1709307558254,-2111.9879456,0.00018452,2]
[315970511,1709307558273,-155.0697814,0.00018453,2]
[315970512,1709307558293,-538.36619156,0.00018453,2]
[315970513,1709307558313,-400.82246414,0.00018453,2]
[315970514,1709307558333,-179.57077703,0.00018453,2]
[315970515,1709307558353,-176.2238837,0.00018454,2]
[315970516,1709307558374,-294.5719047,0.00018454,2]
[315970517,1709307558397,-290.08429773,0.00018454,2]
[315970518,1709307558417,-5445.53710548,0.00018454,2]
[315970519,1709307558441,-527.85698207,0.00018455,2]
[315970520,1709307558460,-155.0697814,0.00018456,2]
[315970521,1709307558482,-15234.87744507,0.00018456,2]
[315970522,1709307558508,-6913.605584,0.00018458,2]
[315970523,1709307558536,-1140.2596044,0.00018468,2]
[315970524,1709307558563,-159.18375022,0.000189,2]
[315970525,1709307635988,-155.06823002,0.00018898,2]
[315970526,1709307636012,-155.06823002,0.00018899,2]
[315970527,1709307636036,-737.30969251,0.000189,2]
[315970528,1709307636060,-166.666666,0.00019178,2]
[315970529,1709307636082,-170.397411,0.00019178,2]
[315970530,1709307636106,-1144.08333997,0.00019533,2]
[315970531,1709307636129,-527.85698207,0.00019997,2]
[315970532,1709307636151,-176.2238837,0.00019998,2]
[315970533,1709307636174,-290.08429773,0.00019998,2]
[315970534,1709307636197,-538.36619156,0.00019998,2]
[315970535,1709307636219,-27.87507542,0.00019999,2]
[315970536,1709307636582,1362.14528464,0.00018898,5]
[315970537,1709307706949,-294.5719047,0.00019994,2]
[315970538,1709307706971,-8357.4280953,0.00019994,2]
[315970540,1709307780636,-179.57077703,0.00018896,2]
[315970541,1709307780656,-2111.9879456,0.00018896,2]
[315970542,1709307780676,-557.5480976,0.00018896,2]
[315970543,1709307780696,-400.82246414,0.00018897,2]
[315970544,1709307780716,-155.0697814,0.00018897,2]
[315970545,1709307780737,-155.0697814,0.00018898,2]
[315970546,1709307780757,-744.67090207,0.00018899,2]
[315970547,1709307780777,-5445.53710548,0.00018899,2]
[315970548,1709307780798,-597.66229515,0.000189,2]
[315970549,1709307780819,-1362.14528464,0.00019988,5]
[315970550,1709307780840,-155.0697814,0.00019988,2]
[315970551,1709307780862,-155.0697814,0.00019988,2]
[315970552,1709307780882,-527.85698207,0.00019989,2]
[315970553,1709307780903,-538.36619156,0.0001999,2]
[315970554,1709307780926,-176.2238837,0.0001999,2]
[315970555,1709307780946,-155.723056,0.00019991,2]
[315970556,1709307780968,-11335.60588936,0.00019992,2]
[315970558,1709307912420,1362.14528464,0.00019098,5]
[315970559,1709308112384,1362.14528464,0.00018472,5]
[315970627,1709308238321,-176.2238837,0.00018467,2]
[315970629,1709308238331,-179.57077703,0.00018468,2]
[315970631,1709308238341,-294.5719047,0.00018469,2]
[315970632,1709308238350,-194.467308,0.00018479,2]
[315970633,1709308238360,-5445.53710548,0.00018894,2]
[315970634,1709308238369,-15234.87744507,0.00018895,2]
[315970636,1709308238379,-8010.05157774,0.00018896,2]
[315970637,1709308238388,-398.4415301,0.000189,2]
[315970639,1709308238397,-24900.0,0.00018987,2]
[315970641,1709308238408,-3000.0,0.00019101,2]
[315970643,1709308238420,-473.2085307,0.00019165,2]
[315970645,1709308238430,-166.666666,0.00019178,2]
[315970647,1709308238439,-1400.44,0.0001999,3]
[315970648,1709308238449,-1362.14528464,0.00019999,5]
[315970649,1709308238459,-20840.03860396,0.0002,2]
[315970650,1709308238468,-153.0,0.0002,2]
[315970651,1709308238479,-238.53127687,0.0002,2]
[315970653,1709308238489,-155.0294556,0.00020165,2]
[315970654,1709308238498,-10896.86839679,0.00020176,2]
[315970656,1709308238507,-58797.10117107,0.00020189,5]
[315970658,1709308238516,-8132.02880295,0.00020189,2]
[315970659,1709308238525,-3731.63563459,0.00020189,2]
[315970661,1709308238535,-934.65933589,0.00020189,2]
[315970662,1709308238544,-12900.11022997,0.00020189,2]
[315970663,1709308238554,-154.7275779,0.000202,2]
[315970664,1709308238563,-8853.44423124,0.00020299,2]
[315970665,1709308238573,-155.07288426,0.00020299,2]
[315970666,1709308238582,-2271.49952981,0.00020299,2]
[315970667,1709308238591,-276.90759577,0.00020299,2]
[315970668,1709308238600,-4648.48714445,0.00020299,2]
[315970669,1709308238610,-623.32489458,0.00020407,2]
[315970670,1709308238619,-412.53102785,0.00020407,2]
[315970671,1709308238628,-500.0,0.00020407,2]
[315970672,1709308238637,-500.0,0.00020407,2]
[315970673,1709308238648,-200.30457798,0.00020407,2]
[315970674,1709308238658,-500.0,0.00020407,2]
[315970675,1709308238667,-213.51434804,0.00020407,2]
[315970676,1709308238677,-242.10061658,0.00020407,2]
[315970677,1709308238687,-500.0,0.00020407,2]
[315970678,1709308238696,-500.0,0.00020407,2]
[315970679,1709308238706,-500.0,0.00020407,2]
[315970680,1709308238716,-500.0,0.00020407,2]
[315970681,1709308238729,-500.0,0.00020407,2]
[315970682,1709308238739,-500.0,0.00020407,2]
[315970683,1709308238748,-500.0,0.00020407,2]
[315970684,1709308238758,-500.0,0.00020407,2]
[315970685,1709308238767,-500.0,0.00020407,2]
[315970686,1709308238776,-338.48736268,0.00020407,2]
[315970687,1709308238786,-500.0,0.00020407,2]
[315970688,1709308238795,-500.0,0.00020407,2]
[315970689,1709308238805,-500.0,0.00020407,2]
[315970690,1709308238814,-500.0,0.00020407,2]
[315970691,1709308238823,-66909.91920661,0.00020408,2]
[315970692,1709308238832,-43769.41210373,0.00020447,2]
[315970693,1709308238841,-736.72976923,0.00020447,2]
[315970694,1709308238850,-646.204167,0.00020509,2]
[315970695,1709308238859,-306.0,0.00020521,2]
[315970696,1709308238868,-401.3287632,0.00020521,2]
[315970697,1709308238878,-306.0,0.00020521,2]
[315970698,1709308238888,-153.0,0.00020521,2]
[315970699,1709308238897,-500.0,0.00020547,2]
[315970700,1709308238906,-640.06006059,0.00020547,2]
[315970701,1709308238915,-500.9495085,0.00020547,2]
[315970702,1709308238927,-500.0,0.00020547,2]
[315970703,1709308238936,-513.9882273,0.00020547,2]
[315970704,1709308238945,-500.0,0.00020547,2]
[315970705,1709308238954,-500.0,0.00020547,2]
[315970706,1709308238963,-500.0,0.00020547,2]
[315970707,1709308238972,-500.0,0.00020547,2]
[315970708,1709308238984,-500.0,0.00020547,2]
[315970709,1709308238994,-588.28,0.00020547,2]
[315970710,1709308239003,-500.0,0.00020547,2]
[315970711,1709308239013,-373.72715939,0.00020547,2]
[315970712,1709308239023,-500.0,0.00020547,2]
[315970713,1709308239032,-500.0,0.00020547,2]
[315970714,1709308239043,-500.0,0.00020547,2]
[315970715,1709308239052,-326.80849412,0.00020547,2]
[315970716,1709308239061,-500.0,0.00020547,2]
[315970717,1709308239071,-500.0,0.00020547,2]
[315970718,1709308239080,-500.0,0.00020547,2]
[315970719,1709308239089,-500.0,0.00020547,2]
[315970720,1709308239098,-500.0,0.00020547,2]
[315970721,1709308239108,-500.0,0.00020547,2]
[315970722,1709308239117,-500.0,0.00020547,2]
[315970723,1709308239127,-551.92,0.00020547,2]
[315970724,1709308239136,-500.0,0.00020547,2]
[315970725,1709308239146,-527.39049889,0.00020547,2]
[315970726,1709308239155,-500.60070753,0.00020547,2]
[315970727,1709308239164,-500.0,0.00020547,2]
[315970728,1709308239174,-500.0,0.00020547,2]
[315970729,1709308239183,-500.0,0.00020547,2]
[315970730,1709308239193,-593.06453736,0.00020547,2]
[315970731,1709308239202,-500.61994642,0.00020547,2]
[315970732,1709308239212,-500.0,0.00020547,2]
[315970733,1709308239222,-500.0,0.00020547,2]
[315970734,1709308239233,-500.0,0.00020547,2]
[315970735,1709308239242,-500.0,0.00020547,2]
[315970736,1709308239251,-500.82491466,0.00020547,2]
[315970737,1709308239261,-387.93424642,0.00020547,2]
[315970738,1709308239270,-500.0,0.00020547,2]
[315970739,1709308239279,-500.0,0.00020547,2]
[315970740,1709308239288,-274.23444574,0.00020547,2]
[315970741,1709308239297,-500.0,0.00020547,2]
[315970742,1709308239307,-500.0,0.00020547,2]
[315970743,1709308239318,-501.71211248,0.00020547,2]
[315970744,1709308239327,-500.0,0.00020547,2]
[315970745,1709308239337,-500.0,0.00020547,2]
[315970746,1709308239346,-500.0,0.00020547,2]
[315970747,1709308239355,-500.0,0.00020547,2]
[315970748,1709308239365,-507.5916589,0.00020547,2]
[315970749,1709308239374,-500.0,0.00020547,2]
[315970750,1709308239383,-500.0,0.00020547,2]
[315970751,1709308239392,-395.25635335,0.00020547,2]
[315970752,1709308239401,-500.0,0.00020547,2]
[315970753,1709308239410,-500.0,0.00020547,2]
[315970754,1709308239419,-505.0,0.00020547,2]
[315970755,1709308239428,-500.0,0.00020547,2]
[315970756,1709308239437,-500.0,0.00020547,2]
[315970757,1709308239446,-500.0,0.00020547,2]
[315970758,1709308239456,-500.0,0.00020547,2]
[315970759,1709308239464,-500.0,0.00020547,2]
[315970760,1709308239474,-500.0,0.00020547,2]
[315970761,1709308239484,-500.0,0.00020547,2]
[315970762,1709308239492,-500.0,0.00020547,2]
[315970763,1709308239503,-500.0,0.00020547,2]
[315970764,1709308239514,-500.0,0.00020547,2]
[315970765,1709308239524,-500.0,0.00020547,2]
[315970766,1709308239533,-500.37719553,0.00020547,2]
[315970767,1709308239543,-500.0,0.00020547,2]
[315970768,1709308239552,-500.0,0.00020547,2]
[315970769,1709308239561,-500.0,0.00020547,2]
[315970770,1709308239570,-500.0,0.00020547,2]
[315970771,1709308239579,-500.0,0.00020547,2]
[315970772,1709308239588,-500.0,0.00020547,2]
[315970773,1709308239598,-500.0,0.00020547,2]
[315970774,1709308239607,-439.76788492,0.00020547,2]
[315970775,1709308239616,-500.0,0.00020547,2]
[315970776,1709308239625,-500.0,0.00020547,2]
[315970777,1709308239634,-500.0,0.00020547,2]
[315970778,1709308239643,-500.0,0.00020547,2]
[315970779,1709308239652,-336.04,0.00020547,2]
[315970780,1709308239745,-501.08668541,0.00020547,2]
[315970781,1709308239754,-500.0,0.00020547,2]
[315970782,1709308239763,-502.38852837,0.00020547,2]
[315970783,1709308239772,-500.0,0.00020547,2]
[315970784,1709308239781,-500.0,0.00020547,2]
[315970785,1709308239790,-500.0,0.00020547,2]
[315970786,1709308239800,-260.04750707,0.00020547,2]
[315970787,1709308239809,-500.0,0.00020547,2]
[315970788,1709308239818,-500.0,0.00020547,2]
[315970789,1709308239828,-284.39220468,0.00020547,2]
[315970790,1709308239837,-500.0,0.00020547,2]
[315970791,1709308239847,-500.0,0.00020547,2]
[315970792,1709308239856,-500.0,0.00020547,2]
[315970793,1709308239865,-500.0,0.00020547,2]
[315970794,1709308239874,-500.0,0.00020547,2]
[315970795,1709308239883,-500.0,0.00020547,2]
[315970796,1709308239893,-500.0,0.00020547,2]
[315970797,1709308239902,-500.0,0.00020547,2]
[315970798,1709308239911,-642.14,0.00020547,2]
[315970799,1709308239920,-500.0,0.00020547,2]
[315970800,1709308239929,-500.0,0.00020547,2]
[315970801,1709308239938,-500.0,0.00020547,2]
[315970802,1709308239947,-500.0,0.00020547,2]
[315970803,1709308239956,-500.0,0.00020547,2]
[315970804,1709308239965,-500.0,0.00020547,2]
[315970805,1709308239974,-500.0,0.00020547,2]
[315970806,1709308239985,-500.0,0.00020547,2]
[315970807,1709308239997,-500.0,0.00020547,2]
[315970808,1709308240034,-500.0,0.00020547,2]
[315970809,1709308240044,-500.0,0.00020547,2]
[315970810,1709308240054,-500.0,0.00020547,2]
[315970811,1709308240063,-500.0,0.00020547,2]
[315970812,1709308240074,-500.0,0.00020547,2]
[315970813,1709308240083,-324.67,0.00020547,2]
[315970814,1709308240093,-500.0,0.00020547,2]
[315970815,1709308240103,-500.0,0.00020547,2]
[315970816,1709308240113,-500.0,0.00020547,2]
[315970817,1709308240122,-500.0,0.00020547,2]
[315970818,1709308240131,-500.0,0.00020547,2]
[315970819,1709308240141,-200.32914559,0.00020547,2]
[315970820,1709308240150,-495.7610089,0.00020547,2]
[315970821,1709308240159,-500.0,0.00020547,2]
[315970822,1709308240168,-165.05541843,0.00020547,2]
[315970823,1709308240177,-500.0,0.00020547,2]
[315970824,1709308240186,-500.0,0.00020547,2]
[315970825,1709308240195,-500.0,0.00020547,2]
[315970826,1709308240204,-500.0,0.00020547,2]
[315970827,1709308240214,-500.0,0.00020547,2]
[315970828,1709308240224,-521.000517,0.00020547,2]
[315970829,1709308240235,-500.0,0.00020547,2]
[315970830,1709308240244,-543.54514631,0.00020547,2]
[315970831,1709308240254,-500.0,0.00020547,2]
[315970832,1709308240263,-500.0,0.00020547,2]
[315970833,1709308240273,-500.0,0.00020547,2]
[315970834,1709308240283,-360.64308606,0.00020547,2]
[315970835,1709308240293,-500.0,0.00020547,2]
[315970836,1709308240302,-382.86228845,0.00020547,2]
[315970837,1709308240312,-500.0,0.00020547,2]
[315970838,1709308240321,-500.0,0.00020547,2]
[315970839,1709308240331,-500.0,0.00020547,2]
[315970840,1709308240340,-500.0,0.00020547,2]
[315970841,1709308240350,-203.01649433,0.00020547,2]
[315970842,1709308240359,-500.0,0.00020547,2]
[315970843,1709308240367,-500.0,0.00020547,2]
[315970844,1709308240376,-504.72596105,0.00020547,2]
[315970845,1709308240385,-500.0,0.00020547,2]
[315970846,1709308240394,-500.0,0.00020547,2]
[315970847,1709308240403,-500.0,0.00020547,2]
[315970848,1709308240413,-452.29044727,0.00020547,2]
[315970849,1709308240422,-217.00868679,0.00020547,2]
[315970850,1709308240432,-500.0,0.00020547,2]
[315970851,1709308240442,-500.0,0.00020547,2]
[315970852,1709308240451,-500.0,0.00020547,2]
[315970853,1709308240460,-500.0,0.00020547,2]
[315970854,1709308240469,-500.0,0.00020547,2]
[315970855,1709308240478,-500.0,0.00020547,2]
[315970856,1709308240488,-500.0,0.00020547,2]
[315970857,1709308240497,-500.0,0.00020547,2]
[315970858,1709308240507,-501.25651786,0.00020547,2]
[315970859,1709308240516,-501.2660275,0.00020547,2]
[315970860,1709308240527,-500.0,0.00020547,2]
[315970861,1709308240537,-500.0,0.00020547,2]
[315970862,1709308240546,-500.0,0.00020547,2]
[315970863,1709308240555,-500.0,0.00020547,2]